bitfinex/quotes_SOLUSD_20220116
["timestamp","ask_amount","ask_price","bid_price","bid_amount"]
[1642359419595,0.25,148.88,148.79,0.26]
[1642359419794,5.51235049,148.89,148.79,0.26]
[1642359420801,45.90717413,148.89,148.79,0.26]
[1642359425205,45.65717413,148.89,148.79,0.26]
[1642359425605,45.65717413,148.89,148.79,0.33]
[1642359426306,55.73527413,148.89,148.79,0.07]
[1642359427912,9.6,148.88,148.79,0.07]
[1642359428109,10.0806,148.86,148.79,0.07]
[1642359428312,17.84288543,148.85,148.79,0.07]
[1642359428808,18.09288543,148.85,148.79,0.07]
[1642359430509,28.17388543,148.85,148.79,0.07]
[1642359430709,35.68388543,148.85,148.79,0.07]
[1642359431109,9.6,148.84,148.79,0.07]
[1642359431310,34.4576,148.84,148.79,0.07]
[1642359432411,10.0829,148.83,148.79,0.07]
[1642359432812,10.3329,148.83,148.79,0.07]
[1642359435510,0.25,148.83,148.79,0.07]
[1642359435911,34.4576,148.84,148.79,0.07]
[1642359443719,24.8576,148.84,148.79,0.07]
[1642359446127,42.02681152,148.86,148.76,74.4150954]
[1642359446329,42.27681152,148.86,148.78,66.83]
[1642359446527,4.07514361,148.86,148.78,66.83]
[1642359446726,4.07514361,148.86,148.78,67.08]
[1642359446929,0.25,148.86,148.78,67.08]
[1642359447430,0.25,148.86,148.79,19.35998846]
[1642359447629,44.68377342,148.87,148.79,19.35998846]
[1642359447929,44.93377342,148.87,148.79,43.65338846]
[1642359448129,44.93377342,148.87,148.79,110.73338846]
[1642359448529,44.93377342,148.87,148.79,110.48338846]
[1642359449938,44.93377342,148.87,148.79,43.65338846]
[1642359450732,55.01327342,148.87,148.79,43.65338846]
[1642359451155,0.25,148.87,148.79,43.65338846]
[1642359451352,4.07514361,148.88,148.79,43.65338846]
[1642359452152,52.69907353,148.88,148.79,43.65338846]
[1642359452857,52.69907353,148.88,148.8,66.83]
[1642359453056,4.07514361,148.88,148.8,66.83]
[1642359454257,46.081596,148.87,148.79,43.65338846]
[1642359454457,46.331596,148.87,148.79,43.65338846]
[1642359454658,46.331596,148.87,148.79,110.73338846]
[1642359454856,46.331596,148.87,148.79,116.73338846]
[1642359455058,46.331596,148.87,148.79,110.73338846]
[1642359456859,46.331596,148.87,148.79,110.48338846]
[1642359457863,46.331596,148.87,148.79,43.65338846]
[1642359458662,46.331596,148.87,148.79,110.48338846]
[1642359460366,0.25,148.87,148.79,116.48338846]
[1642359460568,0.25,148.87,148.79,110.48338846]
[1642359460767,4.07514361,148.88,148.79,110.73338846]
[1642359460969,4.07514361,148.88,148.79,116.73338846]
[1642359461366,41.28536122,148.88,148.79,116.73338846]
[1642359463809,37.21021761,148.88,148.79,116.73338846]
[1642359464311,54.46685049,148.89,148.79,116.73338846]
[1642359464909,54.46685049,148.89,148.8,0.26]
[1642359465110,54.71685049,148.89,148.8,0.26]
[1642359465309,104.19533976,148.89,148.8,0.26]
[1642359465609,100.37019615,148.89,148.8,0.26]
[1642359465810,100.37019615,148.89,148.79,116.73338846]
[1642359468715,100.37019615,148.89,148.79,110.73338846]
[1642359468915,100.37019615,148.89,148.79,116.73338846]
[1642359469115,110.44829615,148.89,148.79,116.73338846]
[1642359470618,109.01108927,148.89,148.79,116.73338846]
[1642359471920,112.83623288,148.89,148.79,116.73338846]
[1642359472521,112.83623288,148.89,148.79,49.90338846]
[1642359472721,112.83623288,148.89,148.79,43.90338846]
[1642359473521,88.14563288,148.89,148.79,43.90338846]
[1642359474324,84.32048927,148.89,148.79,43.90338846]
[1642359474722,84.32048927,148.89,148.79,110.73338846]
[1642359476423,84.32048927,148.89,148.79,116.73338846]
[1642359476823,84.32048927,148.89,148.79,110.73338846]
[1642359478026,84.07048927,148.89,148.79,110.73338846]
[1642359479325,84.32048927,148.89,148.79,110.73338846]
[1642359479524,84.32048927,148.89,148.79,116.73338846]
[1642359479727,84.32048927,148.89,148.79,110.73338846]
[1642359480927,84.32048927,148.89,148.79,116.73338846]
[1642359481153,84.32048927,148.89,148.79,110.73338846]
[1642359482129,84.32048927,148.89,148.79,43.90338846]
[1642359483329,93.92048927,148.89,148.79,43.90338846]
[1642359483530,93.92048927,148.89,148.79,24.5434]
[1642359484029,97.74563288,148.89,148.79,24.5434]
[1642359484527,97.74563288,148.89,148.8,47.08810738]
[1642359484929,97.74563288,148.89,148.81,23.7018]
[1642359485930,93.92048927,148.89,148.81,23.7018]
[1642359487529,97.74563288,148.89,148.81,23.7018]
[1642359488529,97.49563288,148.89,148.81,23.7018]
[1642359488729,87.89563288,148.89,148.81,90.7818]
[1642359488930,87.89563288,148.89,148.81,23.9518]
[1642359489331,87.89563288,148.89,148.81,23.7018]
[1642359489531,77.81753288,148.89,148.81,90.5318]
[1642359489733,73.99238927,148.89,148.81,90.7818]
[1642359489932,74.24238927,148.89,148.81,90.7818]
[1642359491735,49.72848927,148.89,148.81,90.7818]
[1642359492537,73.73828927,148.89,148.81,90.7818]
[1642359492739,73.73828927,148.89,148.81,23.9518]
[1642359493843,73.73828927,148.89,148.81,90.7818]
[1642359495343,1.91487757,148.88,148.81,90.7818]
[1642359495645,75.65316684,148.89,148.81,90.7818]
[1642359495843,75.65316684,148.89,148.81,90.5318]
[1642359496043,75.65316684,148.89,148.81,23.7018]
[1642359496465,75.65316684,148.89,148.81,23.9518]
[1642359496667,75.65316684,148.89,148.81,90.7818]
[1642359497070,51.64336684,148.89,148.81,90.7818]
[1642359497270,51.64336684,148.89,148.82,0.26]
[1642359498071,2.16487757,148.89,148.82,0.26]
[1642359498272,0.25,148.89,148.82,0.26]
[1642359498470,3.55621353,148.9,148.82,0.26]
[1642359499074,41.22148244,148.9,148.82,0.26]
[1642359499571,3.55621353,148.9,148.82,0.26]
[1642359500473,48.74062945,148.9,148.82,0.26]
[1642359500876,46.82575188,148.9,148.82,0.26]
[1642359501975,1.39133596,148.9,148.82,0.26]
[1642359502174,1.39133596,148.9,148.83,10.77522591]
[1642359502475,1.91487757,148.91,148.84,23.5841]
[1642359502674,1.91487757,148.91,148.84,34.35932591]
[1642359502876,1.91487757,148.91,148.86,15.87418355]
[1642359503076,40.46495036,148.94,148.87,66.83]
[1642359503275,40.46495036,148.94,148.87,68.00522591]
[1642359503478,40.71495036,148.94,148.87,68.25522591]
[1642359503774,40.71495036,148.94,148.88,1.17522591]
[1642359504175,38.55007279,148.94,148.88,1.17522591]
[1642359504980,38.55007279,148.94,148.87,0.25]
[1642359505180,38.55007279,148.94,148.87,1.17522591]
[1642359505380,38.80007279,148.94,148.87,1.42522591]
[1642359507380,38.80007279,148.94,148.87,68.25522591]
[1642359507981,38.80007279,148.94,148.87,74.25522591]
[1642359508180,38.80007279,148.94,148.87,73.08]
[1642359508482,38.80007279,148.94,148.88,1.17522591]
[1642359508689,38.55007279,148.94,148.88,1.17522591]
[1642359508882,38.55007279,148.94,148.88,1.42522591]
[1642359509783,38.55007279,148.94,148.88,0.25]
[1642359509984,38.55007279,148.94,148.88,1.42522591]
[1642359510183,38.80007279,148.94,148.88,1.17522591]
[1642359510385,38.80007279,148.94,148.87,73.08]
[1642359510584,38.80007279,148.94,148.88,1.17522591]
[1642359510885,38.80007279,148.94,148.87,73.08]
[1642359511083,38.80007279,148.94,148.88,1.17522591]
[1642359511290,3.17841907,148.96,148.88,1.42522591]
[1642359511490,1.91487757,148.96,148.89,0.26]
[1642359511690,1.91487757,148.96,148.9,66.83]
[1642359511885,1.91487757,148.96,148.9,83.85522591]
[1642359512086,1.91487757,148.96,148.9,82.68]
[1642359512286,1.91487757,148.96,148.91,40.41271624]
[1642359512488,52.29829913,149.0,148.91,40.41271624]
[1642359512686,52.29829913,149.0,148.92,68.00522591]
[1642359512886,52.29829913,149.0,148.92,74.25522591]
[1642359513086,52.29829913,149.0,148.93,1.17522591]
[1642359513490,50.38342156,149.0,148.93,74.25522591]
[1642359513890,50.38342156,149.0,148.94,1.17522591]
[1642359514288,50.38342156,149.0,148.94,7.42522591]
[1642359514494,50.38342156,149.0,148.94,73.08]
[1642359514689,50.38342156,149.0,148.94,6.25]
[1642359514914,50.38342156,149.0,148.94,67.08]
[1642359515116,50.63342156,149.0,148.94,73.08]
[1642359515316,50.63342156,149.0,148.94,6.25]
[1642359515815,50.63342156,149.0,148.94,0.25]
[1642359516015,50.63342156,149.0,148.94,6.25]
[1642359516519,50.63342156,149.0,148.94,0.25]
[1642359516716,11.98367757,149.03,148.92,82.68]
[1642359516918,12.23367757,149.03,148.94,1.17522591]
[1642359517118,11.98367757,149.03,148.94,68.00522591]
[1642359517319,11.98367757,149.03,148.94,74.25522591]
[1642359517718,46.44829767,149.02,148.94,74.25522591]
[1642359518321,46.69829767,149.02,148.94,7.42522591]
[1642359518523,46.69829767,149.02,148.94,6.25]
[1642359518719,46.44829767,149.02,148.94,6.25]
[1642359519319,46.44829767,149.02,148.94,74.25522591]
[1642359520320,46.44829767,149.02,148.95,0.26]
[1642359520720,24.41787757,149.05,148.96,1.17522591]
[1642359520920,24.41787757,149.05,148.96,68.25522591]
[1642359521122,24.41787757,149.05,148.97,22.8127]
[1642359521725,47.37461384,149.04,148.97,46.5375006]
[1642359521923,47.37461384,149.04,148.97,23.7248006]
[1642359523230,47.62461384,149.04,148.97,23.7248006]
[1642359523832,47.37461384,149.04,148.97,23.9748006]
[1642359524332,47.37461384,149.04,148.97,23.7248006]
[1642359524829,47.37461384,149.04,148.97,23.9748006]
[1642359526131,47.62461384,149.04,148.97,23.9748006]
[1642359528233,47.62461384,149.04,148.97,90.8048006]
[1642359528433,47.62461384,149.04,148.97,23.9748006]
[1642359528634,47.62461384,149.04,148.97,23.7248006]
[1642359528836,47.62461384,149.04,148.97,46.9397006]
[1642359529238,47.62461384,149.04,148.97,29.2149]
[1642359529636,57.69271384,149.04,148.97,29.2149]
[1642359529844,57.69271384,149.04,148.97,6.0]
[1642359530036,57.69271384,149.04,148.95,66.83]
[1642359530538,59.60759141,149.04,148.95,66.83]
[1642359531837,59.60759141,149.04,148.93,23.4108]
[1642359532040,23.9126,149.03,148.93,23.4108]
[1642359532238,10.0706,149.0,148.92,24.4436]
[1642359532441,10.3206,149.0,148.91,1.18010612]
[1642359532637,10.3206,149.0,148.91,6.0]
[1642359532839,10.86309523,148.99,148.91,46.46706765]
[1642359533240,11.11309523,148.99,148.91,46.46706765]
[1642359533639,21.18449523,148.99,148.91,46.46706765]
[1642359534440,21.18449523,148.99,148.91,47.64717377]
[1642359536842,21.18449523,148.99,148.91,46.46706765]
[1642359537042,21.18449523,148.99,148.92,1.18010612]
[1642359537845,21.18449523,148.99,148.9,34.7305]
[1642359538048,21.18449523,148.99,148.92,1.18010612]
[1642359538544,21.18449523,148.99,148.9,40.7305]
[1642359538746,21.18449523,148.99,148.91,1.18010612]
[1642359538945,22.8493728,148.99,148.9,73.39862062]
[1642359539147,22.8493728,148.99,148.9,79.64862062]
[1642359539346,22.8493728,148.99,148.9,80.82872674]
[1642359539746,20.93449523,148.99,148.9,79.39862062]
[1642359540148,20.43449523,148.99,148.9,70.94392674]
[1642359540347,20.68449523,148.99,148.9,69.76382062]
[1642359540748,22.5993728,148.99,148.9,69.76382062]
[1642359540947,22.5993728,148.99,148.9,70.94392674]
[1642359541249,22.5993728,148.99,148.9,69.76382062]
[1642359542952,22.5993728,148.99,148.9,31.0957]
[1642359543158,22.5993728,148.99,148.9,6.0]
[1642359543351,1.34439788,148.93,148.87,7.18010612]
[1642359543952,45.67841722,148.92,148.87,49.59507773]
[1642359544154,45.67841722,148.92,148.87,7.18010612]
[1642359545154,45.67841722,148.92,148.87,43.15918919]
[1642359545554,45.67841722,148.92,148.87,41.97908307]
[1642359545956,45.67841722,148.92,148.87,6.0]
[1642359546156,45.67841722,148.92,148.86,28.6519]
[1642359546356,45.92841722,148.92,148.86,28.6519]
[1642359546556,45.92841722,148.92,148.86,29.83200612]
[1642359546757,45.67841722,148.92,148.86,29.83200612]
[1642359546958,1.34439788,148.93,148.86,30.08200612]
[1642359547958,50.43142868,148.92,148.87,48.40820808]
[1642359548360,50.43142868,148.92,148.88,1.18010612]
[1642359548787,50.43142868,148.92,148.88,7.43010612]
[1642359549790,50.43142868,148.92,148.88,6.25]
[1642359549989,50.43142868,148.92,148.88,0.25]
[1642359550189,50.43142868,148.92,148.87,121.48820808]
[1642359550789,50.43142868,148.92,148.88,1.18010612]
[1642359551488,1.34439788,148.93,148.88,7.18010612]
[1642359551695,24.73847757,148.98,148.88,31.94380612]
[1642359551889,24.73847757,148.98,148.89,1.18010612]
[1642359552089,24.73847757,148.98,148.89,68.01010612]
[1642359552289,24.73847757,148.98,148.89,74.26010612]
[1642359552491,37.22586678,148.97,148.9,106.93258898]
[1642359552890,37.22586678,148.97,148.91,1.18010612]
[1642359554189,37.22586678,148.97,148.9,44.92248286]
[1642359554390,37.22586678,148.97,148.9,23.8684]
[1642359554592,37.47586678,148.97,148.9,23.8684]
[1642359554792,37.47586678,148.97,148.87,8.0565]
[1642359554990,24.3276,148.96,148.87,30.7866]
[1642359555191,24.3276,148.96,148.87,31.96670612]
[1642359555391,24.5776,148.96,148.87,31.96670612]
[1642359556192,24.5776,148.96,148.88,0.07]
[1642359556592,24.5776,148.96,148.89,22.5478045]
[1642359556893,24.5776,148.96,148.89,28.7978045]
[1642359557093,24.5776,148.96,148.89,6.25]
[1642359557495,24.5776,148.96,148.89,6.0]
[1642359557695,24.5776,148.96,148.88,0.07]
[1642359558097,24.5776,148.96,148.88,42.96493316]
[1642359558296,24.5776,148.96,148.88,49.21493316]
[1642359558595,24.5776,148.96,148.89,24.2222]
[1642359558998,24.5776,148.96,148.89,30.2222]
[1642359562799,26.49247757,148.96,148.89,30.2222]
[1642359563601,26.49247757,148.96,148.89,6.0]
[1642359564098,26.49247757,148.96,148.88,41.78482704]
[1642359564099,27.92591207,148.96,148.88,0.07]
[1642359565301,1.91487757,148.94,148.88,0.07]
[1642359565502,20.51184228,148.93,148.88,0.07]
[1642359565901,20.76184228,148.93,148.88,0.07]
[1642359567203,20.51184228,148.93,148.88,0.07]
[1642359572710,20.76184228,148.93,148.88,0.07]
[1642359577839,20.51184228,148.93,148.88,0.07]
[1642359579445,20.76184228,148.93,148.88,0.07]
[1642359580541,24.9854,148.92,148.88,0.07]
[1642359580942,25.2354,148.92,148.88,0.07]
[1642359581442,35.3118,148.92,148.88,0.07]
[1642359585150,35.0618,148.92,148.88,0.07]
[1642359586851,35.3118,148.92,148.88,0.07]
[1642359600098,37.22667757,148.92,148.88,0.07]
[1642359600900,27.15027757,148.92,148.88,0.07]
[1642359601698,24.9854,148.92,148.88,0.07]
[1642359604299,35.0616,148.92,148.88,0.07]
[1642359604899,35.3116,148.92,148.88,0.07]
[1642359605298,35.3116,148.92,148.81,1.87834379]
[1642359605299,44.9116,148.92,148.81,1.87834379]
[1642359605899,1.91487757,148.9,148.79,1.87834379]
[1642359606100,10.0803,148.87,148.79,1.87834379]
[1642359606499,18.2023,148.87,148.79,1.87834379]
[1642359606903,20.11717757,148.87,148.76,26.20934379]
[1642359607299,20.51184228,148.86,148.76,26.20934379]
[1642359607499,10.0817,148.84,148.76,26.20934379]
[1642359607702,37.22586678,148.83,148.76,26.20934379]
[1642359607900,37.47586678,148.83,148.76,26.20934379]
[1642359608101,0.25,148.83,148.76,26.20934379]
[1642359608301,0.25,148.83,148.76,24.581]
[1642359608902,0.25,148.83,148.76,30.581]
[1642359609105,41.50661723,148.84,148.76,30.581]
[1642359609602,0.46904246,148.8,148.76,30.581]
[1642359610903,0.25,148.85,148.76,31.76110612]
[1642359611304,10.3296,148.87,148.76,31.76110612]
[1642359611505,60.17169435,148.87,148.76,31.76110612]
[1642359611703,0.25,148.87,148.76,108.00150612]
[1642359611904,11.76487757,148.88,148.76,108.00150612]
[1642359612105,9.85,148.88,148.76,108.00150612]
[1642359612710,45.69602863,148.87,148.76,108.00150612]
[1642359613005,26.27267757,148.9,148.76,108.00150612]
[1642359613207,1.91487757,148.9,148.79,9.0686]
[1642359613506,2.16487757,148.9,148.8,23.80210612]
[1642359613707,2.16487757,148.9,148.8,24.06210612]
[1642359613906,2.16487757,148.9,148.81,23.19179648]
[1642359614109,0.25,148.9,148.81,23.19179648]
[1642359614309,52.27374027,148.91,148.81,23.44179648]
[1642359614507,2.16487757,148.91,148.81,24.6219026]
[1642359614708,2.16487757,148.91,148.82,24.4608]
[1642359615008,2.16487757,148.91,148.82,30.7108]
[1642359615212,0.25,148.91,148.82,31.89090612]
[1642359615410,43.04360093,148.91,148.82,30.7108]
[1642359615810,43.29360093,148.91,148.82,30.7108]
[1642359617215,43.29360093,148.91,148.82,24.7108]
[1642359617513,53.37040093,148.91,148.82,24.7108]
[1642359618916,53.37040093,148.91,148.82,25.89090612]
[1642359619316,53.37040093,148.91,148.82,24.7108]
[1642359620442,53.37040093,148.91,148.82,25.89090612]
[1642359621344,53.37040093,148.91,148.82,24.7108]
[1642359624344,62.97040093,148.91,148.81,23.19179648]
[1642359625348,132.0552785,148.91,148.81,23.19179648]
[1642359625845,131.8052785,148.91,148.81,23.19179648]
[1642359626445,133.50605438,148.91,148.81,23.19179648]
[1642359626848,1.91487757,148.9,148.81,23.19179648]
[1642359627047,9.6,148.89,148.81,23.19179648]
[1642359627248,24.77330813,148.88,148.81,23.19179648]
[1642359627448,25.02330813,148.88,148.81,23.19179648]
[1642359631852,0.25,148.88,148.81,23.19179648]
[1642359632252,9.85,148.89,148.81,23.19179648]
[1642359632453,9.85,148.89,148.81,23.44179648]
[1642359632752,0.25,148.89,148.81,23.44179648]
[1642359632956,75.22811899,148.9,148.82,24.4181]
[1642359633252,73.31324142,148.9,148.82,24.4181]
[1642359633454,73.31324142,148.9,148.82,24.6681]
[1642359633956,50.69484142,148.9,148.82,24.6681]
[1642359634755,0.25,148.9,148.82,24.6681]
[1642359634957,13.38259215,148.92,148.82,24.6681]
[1642359635558,13.38259215,148.92,148.82,30.6681]
[1642359635756,40.39999789,148.91,148.82,30.6681]
[1642359635954,40.64999789,148.91,148.82,30.6681]
[1642359636956,40.64999789,148.91,148.82,24.6681]
[1642359637257,40.64999789,148.91,148.82,24.4181]
[1642359637557,50.72679789,148.91,148.82,24.4181]
[1642359638687,1.70077588,148.9,148.82,24.4181]
[1642359638857,10.0797,148.88,148.82,24.4181]
[1642359639057,17.33771117,148.87,148.82,24.4181]
[1642359639459,17.58771117,148.87,148.82,24.4181]
[1642359639658,0.25,148.87,148.82,24.4181]
[1642359640363,37.52565345,148.9,148.82,24.4181]
[1642359640561,10.0796,148.87,148.82,24.4181]
[1642359640962,10.3296,148.87,148.82,24.4181]
[1642359645263,0.25,148.87,148.82,24.4181]
[1642359645465,41.19819381,148.88,148.82,24.4181]
[1642359647589,40.94819381,148.88,148.82,24.4181]
[1642359647791,11.99307757,148.89,148.82,24.4181]
[1642359648593,10.0782,148.89,148.82,24.4181]
[1642359648793,46.39331518,148.88,148.82,24.4181]
[1642359649195,46.64331518,148.88,148.82,24.4181]
[1642359652299,0.25,148.88,148.82,24.4181]
[1642359652702,10.0782,148.89,148.82,24.4181]
[1642359652703,10.3282,148.89,148.82,24.4181]
[1642359653302,37.96376892,148.88,148.82,24.4181]
[1642359653702,38.21376892,148.88,148.82,24.4181]
[1642359654905,11.99307757,148.89,148.82,24.4181]
[1642359654906,1.91487757,148.89,148.82,91.8381]
[1642359655107,1.91487757,148.89,148.82,24.6681]
[1642359655507,1.91487757,148.9,148.82,24.6681]
[1642359656310,1.91487757,148.91,148.82,91.8381]
[1642359656708,2.16487757,148.91,148.82,91.8381]
[1642359657106,1.91487757,148.91,148.82,91.8381]
[1642359657306,1.91487757,148.91,148.82,93.01820612]
[1642359657606,1.91487757,148.91,148.82,91.8381]
[1642359658007,62.23293767,148.92,148.82,93.01820612]
[1642359658406,62.48293767,148.92,148.82,93.01820612]
[1642359658611,25.46011458,148.92,148.82,93.01820612]
[1642359659007,25.46011458,148.92,148.82,91.8381]
[1642359659408,1.39161458,148.92,148.82,93.01820612]
[1642359659608,37.71061333,148.92,148.82,93.01820612]
[1642359659809,1.14161458,148.92,148.82,99.01820612]
[1642359660010,1.14161458,148.92,148.82,117.68520612]
[1642359660213,1.14161458,148.92,148.83,0.26]
[1642359660812,1.14161458,148.92,148.84,1.18010612]
[1642359661010,1.14161458,148.92,148.85,40.27049446]
[1642359661213,1.14161458,148.92,148.85,107.44049446]
[1642359661415,1.14161458,148.92,148.85,113.69049446]
[1642359661612,1.14161458,148.92,148.85,46.52049446]
[1642359661812,1.39161458,148.92,148.86,24.414]
[1642359662016,20.10403196,148.91,148.86,24.414]
[1642359662214,1.39161458,148.92,148.86,24.414]
[1642359662714,1.14161458,148.92,148.86,24.414]
[1642359663114,1.14161458,148.92,148.86,24.664]
[1642359665447,1.14161458,148.92,148.87,67.17]
[1642359665848,1.14161458,148.92,148.87,73.42]
[1642359666252,1.14161458,148.92,148.87,6.25]
[1642359666447,1.14161458,148.92,148.88,23.19179648]
[1642359666848,1.14161458,148.92,148.88,29.44179648]
[1642359667552,1.91487757,148.96,148.88,30.6219026]
[1642359667750,1.91487757,148.96,148.89,90.2976]
[1642359667950,2.16487757,148.96,148.89,90.5476]
[1642359668150,1.91487757,148.96,148.89,96.5476]
[1642359668350,1.91487757,148.96,148.9,0.26]
[1642359668552,1.91487757,148.96,148.91,9.0616]
[1642359668753,1.91487757,148.96,148.92,67.17]
[1642359668952,1.91487757,148.98,148.92,67.68]
[1642359669153,1.91487757,148.98,148.93,23.2786]
[1642359669354,1.91487757,148.98,148.94,40.27049446]
[1642359669751,1.91487757,148.98,148.95,67.17]
[1642359669954,1.91487757,149.01,148.95,67.17]
[1642359670152,1.91487757,149.01,148.95,90.9265]
[1642359670353,2.16487757,149.01,148.95,90.9265]
[1642359670555,0.25,149.01,148.95,96.9265]
[1642359671357,61.87814243,149.03,148.95,96.9265]
[1642359673056,2.16487757,149.03,148.95,96.9265]
[1642359673257,2.16487757,149.03,148.95,97.1765]
[1642359673658,2.16487757,149.03,148.95,98.35712501]
[1642359674260,0.25,149.03,148.95,97.1765]
[1642359674458,2.16487757,149.04,148.95,97.1765]
[1642359675066,0.25,149.04,148.95,97.1765]
[1642359675460,61.50312556,149.05,148.95,97.1765]
[1642359675861,59.58824799,149.05,148.95,97.1765]
[1642359678265,59.58824799,149.05,148.95,91.1765]
[1642359684495,59.33824799,149.05,148.95,97.1765]
[1642359685894,59.58824799,149.05,148.95,91.1765]
[1642359686093,69.65554799,149.05,148.95,91.1765]
[1642359686495,69.65554799,149.05,148.95,97.1765]
[1642359687501,71.57042556,149.05,148.95,97.1765]
[1642359689200,71.57042556,149.05,148.95,29.7565]
[1642359689201,62.04042556,149.05,148.95,29.7565]
[1642359689401,62.04042556,149.05,148.92,19.7768]
[1642359689402,73.34120144,149.05,148.92,9.6]
[1642359689599,10.0705,149.01,148.92,6.0]
[1642359690008,10.3205,149.01,148.89,22.6381]
[1642359690201,7.99946107,149.0,148.89,22.6381]
[1642359690406,33.5791,148.99,148.89,22.6381]
[1642359690809,33.8291,148.99,148.89,22.6381]
[1642359691202,33.8291,148.99,148.87,46.04883704]
[1642359691403,10.0738,148.97,148.87,52.04883704]
[1642359691804,10.3238,148.97,148.87,113.21883704]
[1642359692008,10.3238,148.97,148.87,113.46883704]
[1642359692204,10.3238,148.97,148.88,22.5232]
[1642359692403,10.3238,148.97,148.88,89.9432]
[1642359692805,10.3238,148.97,148.88,91.12382501]
[1642359693103,10.3238,148.97,148.88,23.95382501]
[1642359693307,10.3238,148.97,148.88,28.7732]
[1642359694004,10.3238,148.97,148.88,29.95382501]
[1642359694607,10.3238,148.97,148.88,97.12382501]
[1642359694806,10.3238,148.97,148.88,95.9432]
[1642359696306,10.3238,148.97,148.88,28.7732]
[1642359698309,10.3238,148.97,148.88,95.9432]
[1642359699309,10.3238,148.97,148.88,28.7732]
[1642359700610,10.3238,148.97,148.88,95.9432]
[1642359701010,10.3238,148.97,148.88,28.7732]
[1642359701610,10.3238,148.97,148.88,95.9432]
[1642359704213,0.25,148.97,148.88,95.9432]
[1642359704413,2.16487757,148.98,148.88,95.9432]
[1642359704916,2.16487757,148.98,148.88,28.7732]
[1642359705112,0.25,148.98,148.88,28.7732]
[1642359705313,24.86747757,148.99,148.88,28.7732]
[1642359706512,10.072,148.98,148.88,28.7732]
[1642359707012,10.322,148.98,148.88,28.7732]
[1642359712723,11.98687757,148.98,148.88,28.7732]
[1642359713823,12.23687757,148.98,148.88,28.5232]
[1642359714622,1.91487757,148.97,148.88,28.5232]
[1642359714825,25.73007757,148.97,148.88,28.5232]
[1642359715023,36.05287757,148.97,148.88,28.5232]
[1642359717855,35.80287757,148.97,148.88,28.7732]
[1642359718455,39.72957048,148.95,148.88,28.7732]
[1642359722259,39.72957048,148.95,148.88,38.3732]
[1642359722460,39.72957048,148.95,148.88,105.5432]
[1642359723163,41.03574909,148.95,148.88,105.5432]
[1642359725559,1.30617861,148.95,148.88,105.5432]
[1642359726763,1.30617861,148.95,148.88,105.2932]
[1642359727562,1.30617861,148.95,148.88,114.3567]
[1642359728264,1.30617861,148.95,148.88,114.6067]
[1642359733066,1.30617861,148.95,148.88,47.4367]
[1642359733267,1.30617861,148.95,148.88,38.3732]
[1642359733968,1.30617861,148.95,148.88,105.5432]
[1642359737375,1.55617861,148.95,148.88,38.1232]
[1642359737574,1.55617861,148.95,148.87,46.04883704]
[1642359738475,1.91487757,148.94,148.87,46.04883704]
[1642359738974,2.16487757,148.94,148.87,52.29883704]
[1642359739174,17.16229689,148.93,148.87,52.04883704]
[1642359739374,17.41229689,148.93,148.87,52.04883704]
[1642359766934,0.25,148.93,148.87,52.04883704]
[1642359767133,12.23977757,148.94,148.87,52.04883704]
[1642359767533,2.16487757,148.94,148.87,52.04883704]
[1642359768737,1.91487757,148.93,148.87,52.04883704]
[1642359768934,2.16487757,148.93,148.87,119.21883704]
[1642359769837,2.16487757,148.93,148.87,52.04883704]
[1642359770063,40.71137624,148.93,148.87,46.04883704]
[1642359771364,40.71137624,148.93,148.87,52.04883704]
[1642359774971,40.71137624,148.93,148.87,6.0]
[1642359775371,40.71137624,148.93,148.85,95.7355]
[1642359775575,40.71137624,148.93,148.85,95.9855]
[1642359775974,40.71137624,148.93,148.85,143.52433801]
[1642359776476,1.91487757,148.92,148.85,143.52433801]
[1642359776875,2.16487757,148.92,148.85,143.52433801]
[1642359787189,1.91487757,148.93,148.85,143.52433801]
[1642359787589,1.91487757,148.93,148.86,0.26]
[1642359788489,44.84056792,148.94,148.86,0.26]
[1642359789088,45.09056792,148.94,148.86,0.26]
[1642359789291,45.09056792,148.94,148.86,9.0644]
[1642359789490,43.17569035,148.94,148.86,9.0644]
[1642359789690,43.17569035,148.94,148.86,15.3144]
[1642359789890,43.17569035,148.94,148.87,22.7817]